Cogmind - Beta 15 *** ADVENTURER MODE // 2025.07.16 @ 16:18:12 Player: Gentle Jesus Result: Self-destructed Performance ------------- Evolutions (5) 2500 Regions Visited (11) 2200 Robots Destroyed (105) 525 Value Destroyed (3592) 3592 Prototype IDs (2) 40 Alien Tech Used (0) 0 Bonus (700) 700 TOTAL SCORE: 9557 Bonus ------- Entered Garrisons 200 Used RIF Installer 500 Cogmind --------- Core Integrity 962/1000 Matter 267/300 Energy 150/150 System Corruption 0% Temperature Cool (0) Movement Core (450) Ox8 Location -5/Factory Parts ------- > --- POWER (2) -------- Light Angular Momentum Engine > --- PROPULSION (6) --- (None) > --- UTILITY (6) ------ Enhanced Optical Array Advanced Targeting Computer Hacking Suite Hacking Suite > --- WEAPON (3) ------- Phase Cannon Missile Launcher Maul > --- INVENTORY (5) ---- High-capacity Matter Pod (200) Gatling Laser Autogun Remote Datajack Remote Datajack Peak State ------------ > --- POWER ------------ Light Deuterium Engine Light Nuclear Core > --- PROPULSION ------- VTOL Module VTOL Module VTOL Module > --- UTILITY ---------- Enhanced Optical Array Advanced Targeting Computer Hacking Suite Hacking Suite Relay Coupler [Swarmer] > --- WEAPON ----------- Plasma Rifle Proton Cannon > --- INVENTORY -------- Improved Heat Sink High-capacity Matter Pod Plasma Rifle Remote Datajack Maul [Rating: 40] Favorites ----------- Power Deuterium Engine Engine Deuterium Engine Power Core Light Nuclear Core Propulsion Aluminum Leg Treads Light Treads Leg Aluminum Leg Flight Unit VTOL Module Utility Hacking Suite Device Improved Heat Sink Storage Large Storage Unit Processor Terrain Scan Processor Hackware Hacking Suite Protection Utility Shielding Weapon Flak Cannon Energy Gun Medium Laser Energy Cannon Phase Cannon Ballistic Gun Light Assault Rifle Ballistic Cannon Flak Cannon Launcher Missile Launcher Special Weapon Remote Datajack Impact Weapon Maul Build | -11 -10 -9 -9 -8 -8 -7 -7 -6 -6 -6 -5 ------- Run | Yrd Mat Mat Min Mat Sto Fac Gar Fac Low Low Fac Slots Evolved 10 | . . 2 . 2 . 2 . 2 . . 2 Power 1 | . . . . . . 1 . . . . . Propulsion 4 | . . 2 . . . . . 1 . . 1 Utility 4 | . . . . 2 . . . 1 . . 1 Weapon 1 | . . . . . . 1 . . . . . Parts Attached 78 | 8 1 9 3 8 15 1 15 10 8 . . Power 14 | 2 . . . 1 2 1 3 2 3 . . Engine 8 | 2 . . . 1 2 1 . 1 1 . . Core 6 | . . . . . . . 3 1 2 . . Reactor . | . . . . . . . . . . . . Propulsion 28 | 2 . 5 2 3 6 . 5 3 2 . . Treads 4 | . . . . . . . . 3 1 . . Leg 19 | 2 . 5 2 3 6 . 1 . . . . Wheel . | . . . . . . . . . . . . Hover . | . . . . . . . . . . . . Flight 5 | . . . . . . . 4 . 1 . . Utility 17 | 2 1 1 1 3 2 . 5 2 . . . Device 6 | 1 . . 1 2 1 . 1 . . . . Storage 2 | 1 1 . . . . . . . . . . Processor 4 | . . . . 1 . . 2 1 . . . Hackware 3 | . . . . . 1 . 1 1 . . . Protection 2 | . . 1 . . . . 1 . . . . Artifact . | . . . . . . . . . . . . Weapon 19 | 2 . 3 . 1 5 . 2 3 3 . . Energy Gun 4 | 1 . . . . 1 . . 2 . . . Energy Cannon 3 | . . . . 1 . . . 1 1 . . Ballistic Gun 3 | 1 . . . . 1 . . . 1 . . Ballistic Cannon 4 | . . 1 . . 2 . 1 . . . . Launcher 2 | . . . . . 1 . . . 1 . . Special Weapon 2 | . . 1 . . . . 1 . . . . Impact Weapon 1 | . . 1 . . . . . . . . . Slashing Weapon . | . . . . . . . . . . . . Piercing Weapon . | . . . . . . . . . . . . Special Melee Weapon . | . . . . . . . . . . . . Unidentified Prototypes 2 | . . . . . 2 . . . . . . Corrupted Parts 1 | . . . . . . . . 1 . . . System Corruption 2 | . . . . . . . . 2 . . . Parts Lost 37 | . . . . . 10 2 14 1 8 . 2 Power 9 | . . . . . . 1 4 1 2 . 1 Propulsion 16 | . . . . . 6 . 6 . 3 . 1 Utility 4 | . . . . . 1 1 1 . 1 . . Weapon 8 | . . . . . 3 . 3 . 2 . . Highest Loss Streak 5 | . . . . . 5 2 4 1 4 . 2 To Critical Strikes . | . . . . . . . . . . . . Average Backups 9 | 1 5 10 14 14 13 12 10 4 4 5 5 Power . | . 1 1 1 1 1 . . . . . . Propulsion . | . . 1 4 3 1 . . . . . . Utility 5 | . 3 7 8 7 9 10 8 2 1 1 1 Weapon 1 | . . . 1 2 1 2 1 1 1 2 2 Tool/Special . | . . . . . . . . . . . . Unused Backups 7 | . . . 1 . . . 3 . . . 3 Power . | . . . . . . . . . . . . Propulsion . | . . . . . . . . . . . . Utility 5 | . . . 1 . . . 3 . . . 1 Weapon 1 | . . . . . . . . . . . 1 Tool/Special 1 | . . . . . . . . . . . 1 Average Slot Usage (%) 82 | . 100 97 100 97 97 86 65 70 66 66 58 Engine 8 | . 14 11 11 9 9 13 7 4 5 6 5 Core 2 | . . . . . . . 4 5 5 6 5 Treads 2 | . . . . . . . . 7 7 6 5 Leg 19 | . 28 41 44 36 35 30 7 . . . . Flight 1 | . . . . . . . 5 10 2 . . Device 3 | . 14 2 7 14 2 . . . 1 . . Storage 5 | . 14 11 11 9 9 7 5 . . . . Processor 9 | . . . . 8 9 7 13 13 13 13 11 Hackware 7 | . . . . . 6 7 7 17 13 13 11 Protection 3 | . . 8 3 3 8 3 . . . . . Energy Gun 5 | . 14 7 11 9 6 7 2 3 4 . . Energy Cannon 2 | . . . . . 3 . . 5 2 6 5 Ballistic Gun 1 | . 14 9 . . . . . . 1 . . Ballistic Cannon 3 | . . 1 11 6 4 7 7 . . . . Launcher 1 | . . . . . 2 . . . 1 6 5 Impact Weapon 1 | . . 3 . . 1 . 1 . 3 6 5 Peak Build Rating 40 | 7 8 12 11 22 32 33 31 40 40 40 40 Average Rating 26 | 5 7 10 11 17 27 29 24 33 35 40 39 On Entrance 21 | . 7 8 11 11 22 30 29 21 34 40 40 Naked Turns . | . . . . . . . . . . . . Heaviest Build 51 | 14 29 31 31 39 43 51 50 22 40 40 40 Greatest Support 60 | 20 20 40 40 45 57 54 54 60 60 28 28 Greatest Overweight (x) 10 | 1 1 . . . 3 . 9 1 10 1 1 Average Overweight (x) . | . . . . . . . . . 1 1 1 Largest Inventory Capacity 15 | 8 15 15 15 15 15 15 15 5 5 5 5 Average Capacity 11 | 7 14 15 15 15 15 15 13 5 5 5 5 Most Carried 15 | 5 7 15 15 15 15 14 14 5 5 5 5 Average Carried 9 | 1 5 10 14 14 13 12 10 4 4 5 5 Final Capacity 15 | 8 15 15 15 15 15 15 5 5 5 5 5 Final Carried 15 | 4 7 15 14 14 14 13 5 5 5 5 5 Class Distribution -------------------- 58% | Hacker-Mutant 17% | Mutant 17% | Scavenger-Mutant 3% | Scavenger-Skirmisher Dominant Class ---------------- Mutant | -10/Materials Mutant | -9/Materials Mutant | -9/Mines Scavenger-Skirmisher | -8/Materials Hacker-Mutant | -8/Storage Hacker-Mutant | -7/Factory Hacker-Mutant | -7/Garrison Hacker-Mutant | -6/Factory Hacker-Mutant | -6/Lower Caves Hacker-Mutant | -6/Lower Caves Hacker-Mutant | -5/Factory Resources | -11 -10 -9 -9 -8 -8 -7 -7 -6 -6 -6 -5 ----------- Run | Yrd Mat Mat Min Mat Sto Fac Gar Fac Low Low Fac Matter Collected 2483 | 278 31 115 66 416 694 62 417 190 214 . . Remotely . | . . . . . . . . . . . . Salvage Created 3510 | 121 67 368 62 392 1569 62 263 201 405 . . Parts 172 | 10 3 21 6 26 68 6 9 11 12 . . Haulers Intercepted 2 | . . . . . 2 . . . . . . Recyclers Shooed 6 | 1 . 1 1 . 3 . . . . . . Parts Field Recycled . | . . . . . . . . . . . . Retrieved Matter . | . . . . . . . . . . . . Parts Self-Destructed 14 | . . . . . . . . . 14 . . Prevented . | . . . . . . . . . . . . Kills | -11 -10 -9 -9 -8 -8 -7 -7 -6 -6 -6 -5 ------- Run | Yrd Mat Mat Min Mat Sto Fac Gar Fac Low Low Fac Combat Hostiles Destroyed 84 | . 2 5 2 11 34 4 11 2 13 . . Guns 25 | . 1 4 . 7 3 1 . . 9 . . Cannons 42 | . . . 2 4 21 3 8 2 2 . . AOE 10 | . . . . . 8 . . . 2 . . Classes Destroyed 13 | 2 1 4 . 3 2 . 1 . . . . Worker 3 | . . 1 . . 2 . . . . . . Builder 3 | . . . . . 2 . . 1 . . . Tunneler 2 | 2 . . . . . . . . . . . Hauler 2 | . . . . . 2 . . . . . . Recycler 5 | 1 . 1 . . 3 . . . . . . Operator 2 | . . 1 . . . . . 1 . . . Watcher 4 | . . 2 . 1 1 . . . . . . Swarmer 22 | . . . . 4 3 4 3 . 8 . . Grunt 37 | . 2 4 2 2 18 . 4 . 5 . . Brawler 2 | . . 1 . . 1 . . . . . . Sentry 19 | . . . . 4 11 . 2 2 . . . Hunter 2 | . . . . 1 1 . . . . . . Programmer 2 | . . . . . . . 2 . . . . Best Kill Streak 8 | 3 1 4 2 7 8 4 3 1 4 . . Combat Bots Only 6 | . 1 2 2 6 6 4 3 1 4 . . Max Kills in Single Turn 2 | 1 1 1 1 1 2 2 1 1 2 . . Gunslinging 1 | . . . . . . . . . 1 . . Exploded 2 | . . . . . 2 . . . 1 . . Melee . | . . . . . . . . . . . . Uniques/NPCs Destroyed . | . . . . . . . . . . . . Combat | -11 -10 -9 -9 -8 -8 -7 -7 -6 -6 -6 -5 -------- Run | Yrd Mat Mat Min Mat Sto Fac Gar Fac Low Low Fac Hostile Shots Fired 676 | . 17 23 4 47 144 27 231 84 93 . 6 Missed 213 | . 3 6 2 15 38 8 79 35 26 . 1 Hits 463 | . 14 17 2 32 106 19 152 49 67 . 5 Melee 1 | . . 1 . . . . . . . . . Projectile 462 | . 14 16 2 32 106 19 152 49 67 . 5 Critical Strikes 15 | . . 1 . 1 6 . 5 . 2 . . Damage Taken 5206 | . 118 176 27 348 1492 223 1458 399 869 . 96 Core 1020 | . 16 33 13 11 166 26 402 57 258 . 38 Absorbed by Shields 11 | . . . . . . . 11 . . . . Redirected to Shielding 26 | . . . . 3 19 4 . . . . . Ignored by Resistances 1533 | . 38 51 8 104 424 68 432 127 254 . 27 Core Remaining (%) 74 | 100 93 . 88 . 67 . 38 . . 62 . Volleys Fired 241 | 8 11 29 4 31 83 9 29 13 23 . 1 Largest 2 | 2 2 2 2 2 2 2 2 2 2 . 1 Hottest 150 | 70 70 70 80 80 125 87 87 150 150 . 85 Shots Fired 417 | 16 22 54 8 61 134 18 45 19 39 . 1 Gun 215 | 16 22 50 4 30 45 9 6 6 27 . . Cannon 177 | . . . 4 31 80 9 39 7 6 . 1 Launcher 15 | . . . . . 9 . . . 6 . . Special 10 | . . 4 . . . . . 6 . . . Kinetic 174 | 8 11 25 4 30 48 9 39 . . . . Thermal 184 | 8 11 29 4 31 61 . . 6 33 . 1 Explosive 15 | . . . . . 9 . . . 6 . . Electromagnetic 38 | . . . . . 16 9 6 7 . . . Robot Hit Streak 27 | 13 9 22 26 13 23 6 27 13 11 . . Robot Miss Streak 10 | . 2 2 2 4 5 10 5 2 1 . 1 Penetration Max . | . . . . . . . . . . . . Secondary Targets 1 | . . . . . . . . . 1 . . Max Gunslinging Chain 1 | . . . . . . . . . 1 . . Shots Hit Robots 328 | 13 12 41 6 41 118 9 39 16 33 . . Core Hits 232 | 5 4 18 4 21 106 10 36 6 22 . . Critical Kills 1 | . . 1 . . . . . . . . . Critical Parts Destroyed 9 | . . 2 . . 4 . 3 . . . . Critical Strikes 22 | . 1 3 . 4 8 . 3 . 3 . . Burn 11 | . 1 . . 3 4 . . . 3 . . Destroy 1 | . . 1 . . . . . . . . . Blast 1 | . . . . 1 . . . . . . . Smash 9 | . . 2 . . 4 . 3 . . . . Melee Attacks 27 | . . 5 . . 16 . 6 . . . . Impact 27 | . . 5 . . 16 . 6 . . . . Slashing . | . . . . . . . . . . . . Piercing . | . . . . . . . . . . . . Sneak Attacks 2 | . . . . . 2 . . . . . . Combat Hostiles . | . . . . . . . . . . . . Follow-up Attacks . | . . . . . . . . . . . . Damage Inflicted 7687 | 140 121 524 94 590 3501 176 1011 343 1187 . . Guns 2206 | 140 121 375 36 276 515 47 38 130 528 . . Cannons 3359 | . . . 54 314 1741 129 758 203 160 . . Explosions 1446 | . . . . . 947 . . . 499 . . Melee 634 | . . 149 . . 279 . 206 . . . . Ramming 42 | . . . 4 . 19 . 9 10 . . . Kinetic 2507 | 39 45 127 54 314 1041 129 758 . . . . Thermal 2692 | 101 76 248 36 276 1137 . . 130 688 . . Explosive 1332 | . . . . . 833 . . . 499 . . Electromagnetic 480 | . . . . . 192 47 38 203 . . . Impact 634 | . . 149 . . 279 . 206 . . . . Slashing . | . . . . . . . . . . . . Piercing . | . . . . . . . . . . . . Highest Corruption 6 | . . . . . . . 4 6 6 6 . Average Corruption 5 | . . . . . . . 3 5 6 6 . Corruption Purged . | . . . . . . . . . . . . Corruption Blocked . | . . . . . . . . . . . . Effects 68 | . . . . . . . 16 6 44 2 . Message Errors 16 | . . . . . . . 4 1 10 1 . Matter Fused 16 | . . . . . . . 2 1 13 . . Heat Flow Errors 8 | . . . . . . . 4 . 4 . . Energy Discharges 14 | . . . . . . . 3 3 8 . . Parts Rejected 3 | . . . . . . . 1 1 1 . . Data Loss (minor) 8 | . . . . . . . 2 . 6 . . Data Loss (major) 1 | . . . . . . . . . . 1 . Misfires 1 | . . . . . . . . . 1 . . Alerts 1 | . . . . . . . . . 1 . . Overload Shots . | . . . . . . . . . . . . Overflow Damage 376 | . . 26 . . 215 . 135 . . . . Projectiles 6 | . . . . . 6 . . . . . . Explosions 5 | . . . . . 5 . . . . . . Melee 365 | . . 26 . . 204 . 135 . . . . Knockbacks 43 | . . . . 2 29 4 8 . . . . Impact . | . . . . . . . . . . . . Kinetic 41 | . . . . 2 28 3 8 . . . . Secondary 2 | . . . . . 1 1 . . . . . Self-Inflicted Damage 228 | . . . . . 202 . . . 26 . . Shots 6 | . . . . . 5 . . . 1 . . Rammed 1 | . . . . . . . . 1 . . . Targets Rammed 7 | . . . 1 . 4 . 1 1 . . . Kicked 6 | . . . 1 . 4 . 1 . . . . Crushed . | . . . . . . . . . . . . Highest Temperature 360 | 70 114 99 54 36 219 175 246 273 360 . 34 Average Temperature 63 | 35 47 41 29 10 54 92 52 131 125 . 20 Received Heat Transfer 2088 | . 84 111 18 99 828 . 732 78 120 . 18 Effects 3 | . . . . . . . . . 3 . . Shutdowns 1 | . . . . . . . . . 1 . . Damage (minor) 2 | . . . . . . . . . 2 . . Siege Activations . | . . . . . . . . . . . . Martial Activations . | . . . . . . . . . . . . Shielding Activations . | . . . . . . . . . . . . Robots Disrupted . | . . . . . . . . . . . . Combat Hostiles . | . . . . . . . . . . . . Robots Corrupted 6 | . . 1 . . 2 . 3 . . . . Combat Hostiles 5 | . . 1 . . 1 . 3 . . . . Parts Fried 7 | . . 1 . . 1 . 2 3 . . . Impact Corruptions 12 | . . 1 . . 8 . 3 . . . . Robots Melted 2 | . 1 . . . 1 . . . . . . Combat Hostiles 2 | . 1 . . . 1 . . . . . . Parts Melted 13 | . . 1 . 2 8 . . . 2 . . Heat Transferred 6858 | 296 296 740 111 1036 2394 . . 300 1685 . . Parts Sabotaged . | . . . . . . . . . . . . Parts Stolen . | . . . . . . . . . . . . Parts Stripped . | . . . . . . . . . . . . Power Chain Reactions 1 | . . . . . 1 . . . . . . Alert | -11 -10 -9 -9 -8 -8 -7 -7 -6 -6 -6 -5 ------- Run | Yrd Mat Mat Min Mat Sto Fac Gar Fac Low Low Fac Maximum Alert Level 1 | . . . . 1 1 . 1 . . . . Low Security (%) 93 | 100 100 100 100 79 95 100 81 100 . . 100 Level 1 6 | . . . . 20 4 . 18 . . . . Level 2 . | . . . . . . . . . . . . Level 3 . | . . . . . . . . . . . . Level 4 . | . . . . . . . . . . . . Level 5 . | . . . . . . . . . . . . High Security . | . . . . . . . . . . . . Max Security . | . . . . . . . . . . . . Peak Influence 239 | 10 20 90 73 220 239 119 204 99 . . 2 Initial 99 | . . . 14 7 41 39 29 99 . . . Average 81 | . 1 25 48 120 104 63 130 30 . . . Influence Increases 2655 | 15 40 210 59 376 1078 160 330 80 305 . 2 Destroy 0b10 Robot/C 1680 | . 40 100 40 220 680 80 220 40 260 . . Destroy 0b10 Robot/NC 105 | 15 . 25 . 5 50 . . 10 . . . Destroy Leader 392 | . . 24 10 72 196 10 30 20 30 . . Successful Hack 59 | . . 7 . 14 18 10 . 10 . . . Disable Machine 45 | . . 9 9 . 27 . . . . . . Destroy Structure 119 | . . . . 5 92 . 20 . . . 2 Partial Spotted 15 | . . . . . 15 . . . . . . Lose Combat Pursuer 240 | . . 45 . 60 . 60 60 . 15 . . Influence Decreases 2655 | 15 40 165 81 284 1093 211 160 299 305 . 2 Entered New Map 322 | . . . 31 16 74 61 20 120 . . . Time Decay 1939 | 15 40 165 50 268 919 130 . 105 245 . 2 Lost Part 330 | . . . . . 100 20 140 10 60 . . Purge Threat 64 | . . . . . . . . 64 . . . Squads Dispatched 6 | . . 1 . 1 4 . . . . . . Investigation . | . . . . . . . . . . . . Extermination . | . . . . . . . . . . . . Reinforcement 6 | . . 1 . 1 4 . . . . . . Assault . | . . . . . . . . . . . . Garrison . | . . . . . . . . . . . . Intercept . | . . . . . . . . . . . . Searches Triggered . | . . . . . . . . . . . . Construction Impeded 2 | . . . . . 2 . . . . . . Haulers Reinforced . | . . . . . . . . . . . . Active Scanning Responses . | . . . . . . . . . . . . Cargo Convoy Interrupts . | . . . . . . . . . . . . Stealth | -11 -10 -9 -9 -8 -8 -7 -7 -6 -6 -6 -5 --------- Run | Yrd Mat Mat Min Mat Sto Fac Gar Fac Low Low Fac Distress Signals 5 | . . 2 . 1 2 . . . . . . Communications Jammed . | . . . . . . . . . . . . Distress Signals . | . . . . . . . . . . . . Times Spotted 132 | . 3 13 1 21 46 9 12 7 17 . 3 Peak Tracking Total 7 | . 2 4 1 7 5 4 5 3 4 . 2 Tactical Retreats 8 | . . 3 . 1 . 1 2 . 1 . . Traps | -11 -10 -9 -9 -8 -8 -7 -7 -6 -6 -6 -5 ------- Run | Yrd Mat Mat Min Mat Sto Fac Gar Fac Low Low Fac Traps Triggered 8 | . . . . . 3 1 3 1 . . . Indirectly . | . . . . . . . . . . . . Trap Hack Attempts . | . . . . . . . . . . . . Triggered . | . . . . . . . . . . . . Disarmed . | . . . . . . . . . . . . Reprogrammed . | . . . . . . . . . . . . Reused . | . . . . . . . . . . . . Traps Extracted . | . . . . . . . . . . . . Installed . | . . . . . . . . . . . . Triggered . | . . . . . . . . . . . . Machines | -11 -10 -9 -9 -8 -8 -7 -7 -6 -6 -6 -5 ---------- Run | Yrd Mat Mat Min Mat Sto Fac Gar Fac Low Low Fac Machines Disabled 5 | . . 1 1 . 3 . . . . . . Max in Single Turn 2 | . . 1 1 . 2 . . . . . . Garrison Access 1 | . . . . . 1 . . . . . . Machines Repaired . | . . . . . . . . . . . . Machines Dismantled . | . . . . . . . . . . . . Machines Sabotaged . | . . . . . . . . . . . . Overloaded Fab Kills . | . . . . . . . . . . . . Hacking | -11 -10 -9 -9 -8 -8 -7 -7 -6 -6 -6 -5 --------- Run | Yrd Mat Mat Min Mat Sto Fac Gar Fac Low Low Fac Machines Accessed 13 | . . 1 . 3 6 1 . 2 . . . Terminals 10 | . . 1 . 2 5 . . 2 . . . Fabricators . | . . . . . . . . . . . . Repair Stations . | . . . . . . . . . . . . Recycling Units . | . . . . . . . . . . . . Scanalyzers . | . . . . . . . . . . . . Garrison Access 3 | . . . . 1 1 1 . . . . . Total Hacks 28 | . . 3 . 7 13 1 . 4 . . . Successful 17 | . . 1 . 3 9 1 . 3 . . . Failed 11 | . . 2 . 4 4 . . 1 . . . Catastrophic 3 | . . . . 2 1 . . . . . . Database Lockouts . | . . . . . . . . . . . . Manual 14 | . . 3 . 3 6 . . 2 . . . Terminals 22 | . . 3 . 4 11 . . 4 . . . Fabricators . | . . . . . . . . . . . . Repair Stations . | . . . . . . . . . . . . Recycling Units . | . . . . . . . . . . . . Scanalyzers . | . . . . . . . . . . . . Garrison Access 6 | . . . . 3 2 1 . . . . . Terminal Hacks 14 | . . 1 . 2 8 . . 3 . . . Record 1 | . . . . . 1 . . . . . . Robot Schematic 1 | . . . . . 1 . . . . . . Open Door 2 | . . . . . 2 . . . . . . Branch Access Points 4 | . . 1 . 1 1 . . 1 . . . Alert Level 2 | . . . . 1 1 . . . . . . Unreport Threat 1 | . . . . . . . . 1 . . . Zone Layout 3 | . . . . . 2 . . 1 . . . Fabricator Hacks . | . . . . . . . . . . . . Repair Station Hacks . | . . . . . . . . . . . . Recycling Unit Hacks . | . . . . . . . . . . . . Scanalyzer . | . . . . . . . . . . . . Garrison Access Hacks 3 | . . . . 1 1 1 . . . . . Unlock Access 1 | . . . . . . 1 . . . . . Seal Access 1 | . . . . . 1 . . . . . . Coupler Status 1 | . . . . 1 . . . . . . . Unauthorized Hacks . | . . . . . . . . . . . . Terminals . | . . . . . . . . . . . . Fabricators . | . . . . . . . . . . . . Repair Stations . | . . . . . . . . . . . . Recycling Units . | . . . . . . . . . . . . Scanalyzers . | . . . . . . . . . . . . Garrison Access . | . . . . . . . . . . . . Data Cores Recovered 1 | . . . . . . . . 1 . . . Used 1 | . . . . . . . . 1 . . . Hacking Detections 11 | . . 1 . 2 5 1 . 2 . . . Full Trace Events . | . . . . . . . . . . . . Feedback Events . | . . . . . . . . . . . . Feedback Blocked . | . . . . . . . . . . . . Robot Schematics Acquired 1 | . . . . . 1 . . . . . . Robots Built . | . . . . . . . . . . . . Authchips . | . . . . . . . . . . . . Time . | . . . . . . . . . . . . Total Robot Build Rating . | . . . . . . . . . . . . Part Schematics Acquired . | . . . . . . . . . . . . Parts Built . | . . . . . . . . . . . . Authchips . | . . . . . . . . . . . . Time . | . . . . . . . . . . . . Total Part Build Rating . | . . . . . . . . . . . . Parts Repaired . | . . . . . . . . . . . . Time . | . . . . . . . . . . . . Parts Recycled . | . . . . . . . . . . . . Recycled Matter . | . . . . . . . . . . . . Retrieved Matter . | . . . . . . . . . . . . Retrieved Components . | . . . . . . . . . . . . Parts Scanalyzed . | . . . . . . . . . . . . Part Schematics Acquired . | . . . . . . . . . . . . Parts Damaged . | . . . . . . . . . . . . Bothacking | -11 -10 -9 -9 -8 -8 -7 -7 -6 -6 -6 -5 ------------ Run | Yrd Mat Mat Min Mat Sto Fac Gar Fac Low Low Fac Used RIF Installer 1 | . . . . . . . 1 . . . . Robots Hacked 3 | . . . . . . . . 3 . . . Non-combat . | . . . . . . . . . . . . Combat 3 | . . . . . . . . 3 . . . Robot Hacks Applied 3 | . . . . . . . . 3 . . . formatsys_high 3 | . . . . . . . . 3 . . . Relay Couplers Released . | . . . . . . . . . . . . Attached 1 | . . . . . . . 1 . . . . Fabnet Peak Effective % . | . . . . . . . . . . . . Robots Rewired . | . . . . . . . . . . . . Allies Hacked . | . . . . . . . . . . . . Hacks Repelled . | . . . . . . . . . . . . Allies | -11 -10 -9 -9 -8 -8 -7 -7 -6 -6 -6 -5 -------- Run | Yrd Mat Mat Min Mat Sto Fac Gar Fac Low Low Fac Total Allies 3 | . . . . . . . . 3 . . . Largest Group 2 | . . . . . . . . 2 . . . Highest-Rated Group 24 | . . . . . . . . 24 . . . Highest-Rated Ally 12 | . . . . . . . . 12 . . . Total Orders . | . . . . . . . . . . . . Ally Attacks 1 | . . . . . . . . 1 . . . Total Damage 17 | . . . . . . . . 17 . . . Kills . | . . . . . . . . . . . . Allies Corrupted . | . . . . . . . . . . . . Allies Melted . | . . . . . . . . . . . . Intel | -11 -10 -9 -9 -8 -8 -7 -7 -6 -6 -6 -5 ------- Run | Yrd Mat Mat Min Mat Sto Fac Gar Fac Low Low Fac Active Infowar (turns) 3691 | 5 365 69 74 604 69 . 134 370 1764 76 161 Optics 2502 | . . . . . . . 131 370 1764 76 161 Sensors 730 | . . . 74 604 50 . 2 . . . . Terrain 420 | . . . . 383 36 . 1 . . . . Seismic 439 | 5 365 69 . . . . . . . . . Robot Analysis Total . | . . . . . . . . . . . . Derelict Logs Recovered 1 | . . . . . . . . . 1 . . Drone Launches . | . . . . . . . . . . . . Drone Recoveries . | . . . . . . . . . . . . Exploration | -11 -10 -9 -9 -8 -8 -7 -7 -6 -6 -6 -5 ------------- Run | Yrd Mat Mat Min Mat Sto Fac Gar Fac Low Low Fac Turns Passed 6892 | 141 365 420 105 604 1868 265 752 371 1764 76 161 Spaces Moved 3750 | 83 170 237 66 369 1175 177 509 238 642 18 66 Core 38 | 2 . . . . . . 11 . 25 . . Treads 645 | . . . . . . . . 86 475 18 66 Legs 2442 | 81 170 237 66 369 1175 177 167 . . . . Wheels . | . . . . . . . . . . . . Hover . | . . . . . . . . . . . . Flight 625 | . . . . . . . 331 152 142 . . Fastest Speed 29 | 50 120 120 120 120 120 125 29 29 160 240 240 Average Speed 150 | 125 187 120 120 120 125 125 114 125 255 240 240 Slowest Speed 550 | 190 190 120 120 120 330 125 500 240 550 240 240 Overloaded Moves . | . . . . . . . . . . . . Propulsion Burnouts . | . . . . . . . . . . . . Robots Hopped . | . . . . . . . . . . . . Potential Cave-ins . | . . . . . . . . . . . . Cave-ins Triggered . | . . . . . . . . . . . . Exploration Rate (%) 27 | 4 27 27 21 24 95 9 29 7 79 7 3 Regions Visited 11 Branch Regions 4 Pre-discovered Areas . | . . . . . . . . . . . . Known Exits Taken 4 | . . 1 . 1 . 1 . 1 . . . Unknown Exits Taken 6 | 1 1 . 1 . 1 . . . 1 1 . Scrap Searched 4 | . . . . . . . . . 4 . . Spaces Dug 1 | . . . . 1 . . . . . . . Terrain Destroyed 139 | . . . . 1 101 . . . 36 . 1 Melee . | . . . . . . . . . . . . Projectile 6 | . . . . 1 3 . . . 1 . 1 AOE 133 | . . . . . 98 . . . 35 . . Terrain Rammed . | . . . . . . . . . . . . Walls Destroyed . | . . . . . . . . . . . . Machines Disabled . | . . . . . . . . . . . . Actions | -11 -10 -9 -9 -8 -8 -7 -7 -6 -6 -6 -5 --------- Run | Yrd Mat Mat Min Mat Sto Fac Gar Fac Low Low Fac Total 4517 | 102 196 310 85 468 1400 202 617 292 726 52 67 Wait 279 | . 11 21 7 47 78 13 4 15 48 35 . Move 3740 | 82 169 236 65 368 1174 177 508 237 641 17 66 Hop . | . . . . . . . . . . . . Pick Up 36 | 4 3 7 1 5 6 1 3 3 3 . . Fast Attach 42 | 6 . 2 . 1 7 . 9 12 5 . . Attach 27 | 1 . 2 . 3 6 2 7 3 3 . . Detach 3 | . . . . . 1 . 2 . . . . Swap 39 | 1 1 6 3 7 13 . 5 1 2 . . Drop 34 | . 1 2 4 6 7 . 6 7 1 . . Fire 241 | 8 11 29 4 31 83 9 29 13 23 . 1 Melee 27 | . . 5 . . 16 . 6 . . . . Ram . | . . . . . . . . . . . . Kick 6 | . . . 1 . 4 . 1 . . . . Crush 1 | . . . . . . . . 1 . . . Escape Stasis 42 | . . . . . 5 . 37 . . . . Rewire . | . . . . . . . . . . . . Trap . | . . . . . . . . . . . . Miscellaneous . | . . . . . . . . . . . . Route ------- -11/Scrapyard -10/Materials -9/Materials (discovered 2 exits: *Min x2) -9/Mines -8/Materials (discovered 3 exits: *Fac / *Sto x2) -8/Storage (discovered 2 exits: *Fac / Rec) -7/Factory -7/Garrison -6/Factory (discovered 3 exits: [*Fac] / *Low x2) -6/Lower Caves -6/Lower Caves -5/Factory History --------- Turn | Location | Event 11 | -11/Scrapyard | Discovered new exit (range 16) 142 | -11/Scrapyard | Entered Materials 304 | -10/Materials | Build established: Mutant 356 | -10/Materials | Discovered new exit (range 11) 507 | -10/Materials | Entered another Materials area 507 | -9/Materials | Evolved 2 slots: Propulsion x2 645 | -9/Materials | Identified exit to Mines 927 | -9/Materials | Entered Mines 1005 | -9/Mines | Received a Rocket Launcher from a helpful Derelict 1025 | -9/Mines | Discovered new exit (range 7) 1032 | -9/Mines | Entered Materials 1032 | -8/Materials | Evolved 2 slots: Utility x2 1075 | -8/Materials | Discovered new exit (range 16) 1167 | -8/Materials | Discovered new exit (range 14) 1573 | -8/Materials | Discovered new exit (range 8) 1577 | -8/Materials | Identified exit to Storage 1636 | -8/Materials | Entered Storage 1943 | -8/Storage | Discovered new exit (range 7) 1987 | -8/Storage | Build established: Scavenger-Mutant 2260 | -8/Storage | Discovered new exit (range 13) 2265 | -8/Storage | Identified exit to Recycling 2408 | -8/Storage | Build established: Hacker-Mutant 2738 | -8/Storage | Lost 5 parts (4n1w) 3504 | -8/Storage | Entered Factory 3504 | -7/Factory | Evolved 2 slots: Power x1, Weapon x1 3645 | -7/Factory | Allied Derelicts emerged from ambush trap array 3769 | -7/Factory | Identified exit to Garrison 3769 | -7/Factory | Entered Garrison 3819 | -7/Garrison | Triggered checkpoint 3894 | -7/Garrison | Lost 3 parts (3n) 4103 | -7/Garrison | Triggered checkpoint 4204 | -7/Garrison | Lost 3 parts (1p1n1w) 4337 | -7/Garrison | Lost 4 parts (1p1n1u1w) 4340 | -7/Garrison | Core integrity fell below 50% 4414 | -7/Garrison | Installed Relay Interface Framework 4423 | -7/Garrison | Discovered new exit (range 16) 4521 | -7/Garrison | Entered Factory 4521 | -6/Factory | Evolved 2 slots: Propulsion x1, Utility x1 4611 | -6/Factory | Identified exit to Lower Caves 4673 | -6/Factory | Discovered new exit (range 14) 4892 | -6/Factory | Entered Lower Caves 4892 | -6/Lower Caves | Accompanied by 1 ally 4924 | -6/Lower Caves | Lost 3 allies 5235 | -6/Lower Caves | Build established: Scavenger-Mutant 5425 | -6/Lower Caves | Lost 4 parts (1p2n1u) 5501 | -6/Lower Caves | Lost 3 parts (1p1n1w) 5635 | -6/Lower Caves | Encountered a Warlord checkpoint 5686 | -6/Lower Caves | Build established: Hacker-Mutant 6273 | -6/Lower Caves | Learned Factory terminal intel 6635 | -6/Lower Caves | Discovered new exit (range 9) 6656 | -6/Lower Caves | Entered another Lower Caves area 6708 | -6/Lower Caves | Discovered new exit (range 8) 6732 | -6/Lower Caves | Entered Factory 6732 | -5/Factory | Evolved 2 slots: Propulsion x1, Utility x1 6733 | -5/Factory | Loaded intel: 26 terminal locations 6893 | -5/Factory | Self-destructed Last Messages --------------- System corrupted: Component data lost. System corrupted: Energy discharge (-73). System corrupted: Energy discharge (-131). EXIT=FOUND THONYU7X=KEG%OVW IAXSISD ZK8LO=V/JP LOCATION=UNKNOWN GOAL=ESCAPE System corrupted: Substantial component data lost. 1ML/ MMM7R4QAE87WSNNTPJ7UXAZ2JXTV/E EXIT=FOUND PARAMETERS=PROPULSION+1,UTILITY+1 LOCATION=UNKNOWN GOAL=ESCAPE Loading Factory terminal intel (x26)... ALERT: All DSF locations entering lockdown mode. Penetrated by Slug. U-05 Engineer builds a Wall. Neutrino Core destroyed. Med. Treads destroyed. Map ----- +----------------------------------------------------+ | ????????????????????????"""" """ # # | | ????????????????????????"""" """ + + | | ??????????????????????? """" # # """ " | | ?????????????????????? """" # # """ " | | ?????????????????????? """" # #? """ " | | ?????????????????????? """" # #? | | ?????????????????????? # #?? """ " | | ?????????????????????# # #?? """ " | | ?????????????????????############## #??? """ " | | ??????????????????????????????????# #??? | | ??????????????????????????????????# #???? | | ??????????????????????????????????# #????##### | | ??????????????????????????????????# #????????? | | ??????????????????????????????????# #????????? | | ??????????????????????????????????# ##???????? | | ??????????????????????????????????# T#???????? | | ??????????????????????????????????# #???????? | | ??????????????????????????????????# ########## | | ??????????????????????????????????# # # | | ??????????????????????????????????# # """" # | | ??????###u##############+########## # """" # | | ?????g # """" # | | ?????? + """" # | | ???????""" # """" # | | ???????"Y"R u # """" # | | ????" @ Y # """" # | | ??????????! ############+####### ##### !# | | ???????????????????????????????# #???########## | | ???????????????????????????????# #????????????? | | ???????????????????????????????# ##+#????????????? | | ???????????????????????????????# # ???????????? | | ???????????????????????????????# # !!! ???"""???? | | ???????????????????????????????# # !!! #?"T????? | | ???????????????????????????????# # !! #?"""???? | | ???????????????????????????????# #########???????? | | ??????????????????????????????? ???????????????? | | ??????????????????????????????? ???????????????? | | ??????????????????????????????? ???????????????? | | ??????????????????????????????? ! ???????????????? | | ??????????????????????????????? ???????????????? | | ???????????????????????????????#+#???????????????? | | ?????????????????????????????????????????????????? | | ?????????????????????????????????????????????????? | | ?????????????????????????????????????????????????? | | ?????????????????????????????????????????????????? | | ?????????????????????????????????????????????????? | | ?????????????????????????????????????????????????? | | ?????????????????????????????????????????????????? | | ?????????????????????????????????????????????????? | | ?????????????????????????????????????????????????? | +----------------------------------------------------+ Best States ------------- Heat Dissipation 51 Energy Generation 32 Energy Capacity 675 Matter Stores 300 Matter Capacity 300 Sight Range 22 Robot Scan Range 14 Terrain Scan Range 16 Terrain Scan Density 85 Armor Coverage 150 Resistance: KI 20 Resistance: TH 20 Resistance: EX 20 Resistance: EM 20 Resistance: I 20 Resistance: S 20 Resistance: P 20 Utility Shielding 33 Evasion (%) 64 Targeting Accuracy 8 Recoil Reduction 3 Offensive Hacking 30 Relay Coupler Types 1 Relay Coupler Value 42 Item Schematics ----------------- None Robot Schematics ------------------ L-31 Rogue | -8/Storage | Hacked Fabricated ------------ Nothing Repaired ---------- Nothing Alien Tech Used ----------------- None Achievements -------------- None Challenges ------------ None Game ------ Seed FrostAblativeArchive Manual? 0 Play Time 00:45:38 Cumulative 102.5 hours Start 2025.07.16 @ 14:57:42 End 2025.07.16 @ 16:18:12 Sessions 9 Manual Loads 0 Difficulty Adventurer Special Mode None Game No. 83 Rogue 0 Adventurer 83 Explorer 0 Win Type - Total 1 Types 1/0/0/0/0/0/0/0/0/0 Lore% 51 Gallery% 51 Achievement% 49 Wizard Run 0 Options --------- Layout 1 ASCII 0 Keyboard 0 Movement Mouse Keybinds 0 Fullscreen 1 Font 32/SmallcapsGlow Map View 50x40 Zoom Use 1% Tactical HUD 0 Map Filters NONE Filters NONE Steam 1 RUN: 23985b00-02cf-4129-bbc4-0c20341e4e3b